[Event "Early-Titled-Tuesday-Blitz-January-23-2024"]
[Site "Chess.com"]
[Date "2024.01.23"]
[Round "2"]
[White "vasblesk"]
[Black "yobdc"]
[Result "1-0"]
[WhiteElo "2776"]
[BlackElo "2525"]
[TimeControl "180+1"]
[EndTime "8:18:02 PST"]
[Termination "vasblesk won on time"]

1. Nf3 {[%clk 0:03:00.9]} 1... Nf6 {[%clk 0:02:56.7]} 2. g3 {[%clk 0:02:56.5]}
2... g6 {[%clk 0:02:57]} 3. Bg2 {[%clk 0:02:56.5]} 3... Bg7 {[%clk 0:02:57.6]}
4. O-O {[%clk 0:02:57.2]} 4... O-O {[%clk 0:02:57.9]} 5. d4 {[%clk 0:02:57.6]}
5... d6 {[%clk 0:02:56.2]} 6. c4 {[%clk 0:02:57.8]} 6... c5 {[%clk 0:02:54.4]}
7. Nc3 {[%clk 0:02:57.6]} 7... Nc6 {[%clk 0:02:53]} 8. d5 {[%clk 0:02:48.3]}
8... Na5 {[%clk 0:02:52.6]} 9. Nd2 {[%clk 0:02:47.3]} 9... e6 {[%clk 0:02:50.1]}
10. Qc2 {[%clk 0:02:25.7]} 10... exd5 {[%clk 0:02:48.3]} 11. cxd5 {[%clk
0:02:24.9]} 11... Rb8 {[%clk 0:02:44.2]} 12. b3 {[%clk 0:02:23]} 12... b5 {[%clk
0:02:41.1]} 13. Bb2 {[%clk 0:02:22.9]} 13... Bf5 {[%clk 0:02:34.5]} 14. e4
{[%clk 0:02:22.5]} 14... Bd7 {[%clk 0:02:29.3]} 15. Nd1 {[%clk 0:02:19.8]} 15...
Re8 {[%clk 0:02:26.6]} 16. Ne3 {[%clk 0:02:18.9]} 16... h5 {[%clk 0:01:33]} 17.
h3 {[%clk 0:02:15.1]} 17... c4 {[%clk 0:01:02.2]} 18. b4 {[%clk 0:01:57.4]}
18... Nb7 {[%clk 0:01:02.1]} 19. Bc3 {[%clk 0:01:53.6]} 19... a5 {[%clk
0:01:02.2]} 20. a3 {[%clk 0:01:53.5]} 20... Ra8 {[%clk 0:01:01.1]} 21. Qb2
{[%clk 0:01:49.7]} 21... Qe7 {[%clk 0:00:36.8]} 22. Rae1 {[%clk 0:01:29.2]}
22... Rec8 {[%clk 0:00:36.3]} 23. g4 {[%clk 0:01:21.4]} 23... hxg4 {[%clk
0:00:34.9]} 24. hxg4 {[%clk 0:01:22.3]} 24... Ne8 {[%clk 0:00:35.2]} 25. f4
{[%clk 0:01:16.2]} 25... axb4 {[%clk 0:00:35.1]} 26. axb4 {[%clk 0:01:14.1]}
26... Ra2 {[%clk 0:00:34.6]} 27. Qxa2 {[%clk 0:01:10.3]} 27... Bxc3 {[%clk
0:00:34.7]} 28. g5 {[%clk 0:00:43.4]} 28... Bxb4 {[%clk 0:00:34.5]} 29. Qc2
{[%clk 0:00:35]} 29... Bc5 {[%clk 0:00:34.5]} 30. Nf3 {[%clk 0:00:31.6]} 30...
b4 {[%clk 0:00:31.9]} 31. Re2 {[%clk 0:00:26.8]} 31... b3 {[%clk 0:00:31.8]} 32.
Qc3 {[%clk 0:00:26.8]} 32... Qxe4 {[%clk 0:00:22.6]} 33. Ne5 {[%clk 0:00:25.1]}
33... Qf5 {[%clk 0:00:08.8]} 34. Nxd7 {[%clk 0:00:14.9]} 34... Qxd7 {[%clk
0:00:09]} 35. Kh2 {[%clk 0:00:15.4]} 35... Ng7 {[%clk 0:00:07.3]} 36. Bh3 {[%clk
0:00:15.5]} 36... Qc7 {[%clk 0:00:04.2]} 37. Bxc8 {[%clk 0:00:15.2]} 37... Qxc8
{[%clk 0:00:05.1]} 38. Qxc4 {[%clk 0:00:15.9]} 38... Na5 {[%clk 0:00:03.6]} 39.
Qe4 {[%clk 0:00:15.7]} 39... Qd8 {[%clk 0:00:03.7]} 40. Ng4 {[%clk 0:00:15.6]}
40... Nh5 {[%clk 0:00:03.5]} 41. Nh6+ {[%clk 0:00:15.5]} 41... Kh7 {[%clk
0:00:03.6]} 42. Qe7 {[%clk 0:00:14]} 42... Qxe7 {[%clk 0:00:03.6]} 43. Rxe7
{[%clk 0:00:14.9]} 43... b2 {[%clk 0:00:03.7]} 44. Rxf7+ {[%clk 0:00:15.6]}
44... Kh8 {[%clk 0:00:03.8]} 45. Re1 {[%clk 0:00:15.1]} 45... Be3 {[%clk
0:00:02.6]} 46. Rxe3 {[%clk 0:00:15.3]} 46... Ng7 {[%clk 0:00:02.3]} 47. Re1
{[%clk 0:00:10.1]} 47... Nb3 {[%clk 0:00:01.9]} 48. Rb7 {[%clk 0:00:10.1]} 48...
Nd2 {[%clk 0:00:01.2]} 49. Kg2 {[%clk 0:00:08.5]} 1-0

[Event "Early-Titled-Tuesday-Blitz-January-23-2024"]
[Site "Chess.com"]
[Date "2024.01.23"]
[Round "2"]
[White "Nekoo04"]
[Black "MVM2008"]
[Result "1-0"]
[WhiteElo "2355"]
[BlackElo "2569"]
[TimeControl "180+1"]
[EndTime "8:18:02 PST"]
[Termination "Nekoo04 won by resignation"]

1. d4 {[%clk 0:02:37.4]} 1... Nf6 {[%clk 0:02:59.3]} 2. c4 {[%clk 0:02:37.1]}
2... e6 {[%clk 0:02:59.4]} 3. Nf3 {[%clk 0:02:36]} 3... a6 {[%clk 0:02:58.9]} 4.
g3 {[%clk 0:02:35.2]} 4... b5 {[%clk 0:02:58.5]} 5. b3 {[%clk 0:02:31.5]} 5...
Bb7 {[%clk 0:02:58.3]} 6. Bg2 {[%clk 0:02:31.6]} 6... c5 {[%clk 0:02:49.8]} 7.
d5 {[%clk 0:02:10.3]} 7... g6 {[%clk 0:02:44.1]} 8. Bb2 {[%clk 0:02:09.6]} 8...
Bg7 {[%clk 0:02:44.1]} 9. e4 {[%clk 0:02:01.3]} 9... d6 {[%clk 0:02:39.1]} 10.
O-O {[%clk 0:01:38.1]} 10... O-O {[%clk 0:02:37.2]} 11. Nfd2 {[%clk 0:01:35.3]}
11... Nbd7 {[%clk 0:02:26.6]} 12. e5 {[%clk 0:01:27.7]} 12... Nxe5 {[%clk
0:02:15.1]} 13. dxe6 {[%clk 0:01:23.8]} 13... Bxg2 {[%clk 0:02:07.6]} 14. Kxg2
{[%clk 0:01:24.7]} 14... fxe6 {[%clk 0:02:05.7]} 15. Bxe5 {[%clk 0:01:22.5]}
15... dxe5 {[%clk 0:02:05.6]} 16. Nc3 {[%clk 0:01:23.1]} 16... Qd3 {[%clk
0:01:50.3]} 17. Nde4 {[%clk 0:01:09.9]} 17... Rad8 {[%clk 0:01:45.9]} 18. Qxd3
{[%clk 0:01:05.9]} 18... Rxd3 {[%clk 0:01:44.4]} 19. Rad1 {[%clk 0:01:06.6]}
19... Rfd8 {[%clk 0:01:29.8]} 20. Nxc5 {[%clk 0:01:06.3]} 20... bxc4 {[%clk
0:01:12.7]} 21. bxc4 {[%clk 0:01:00.8]} 21... Rxd1 {[%clk 0:00:59.6]} 22. Rxd1
{[%clk 0:00:57.8]} 22... Rd4 {[%clk 0:00:59.5]} 23. Rxd4 {[%clk 0:00:37.3]}
23... exd4 {[%clk 0:00:56.1]} 24. Ne2 {[%clk 0:00:38.2]} 24... Nd7 {[%clk
0:00:39.3]} 25. Nd3 {[%clk 0:00:19.6]} 25... Nb6 {[%clk 0:00:36.1]} 26. c5
{[%clk 0:00:19.7]} 26... Nd5 {[%clk 0:00:34.4]} 27. Nef4 {[%clk 0:00:20]} 27...
Nxf4+ {[%clk 0:00:28.2]} 28. gxf4 {[%clk 0:00:20.9]} 28... Kf7 {[%clk
0:00:24.4]} 29. Kf3 {[%clk 0:00:20.9]} 29... Ke7 {[%clk 0:00:18.7]} 30. Ke4
{[%clk 0:00:21.5]} 30... h6 {[%clk 0:00:04]} 31. Ne5 {[%clk 0:00:21.8]} 31... g5
{[%clk 0:00:04.5]} 32. fxg5 {[%clk 0:00:20.7]} 32... hxg5 {[%clk 0:00:05.4]} 33.
Kxd4 {[%clk 0:00:21]} 33... Kd8 {[%clk 0:00:02]} 34. Ke4 {[%clk 0:00:17.8]}
34... Kc7 {[%clk 0:00:02.6]} 35. Nf3 {[%clk 0:00:16.3]} 35... g4 {[%clk
0:00:02.8]} 36. Nd4 {[%clk 0:00:16.3]} 36... Kd7 {[%clk 0:00:02.4]} 37. c6+
{[%clk 0:00:16.3]} 37... Kd6 {[%clk 0:00:03]} 38. c7 {[%clk 0:00:17.2]} 38...
Bxd4 {[%clk 0:00:01.3]} 39. c8=Q {[%clk 0:00:16.8]} 39... e5 {[%clk 0:00:01.8]}
40. Qc4 {[%clk 0:00:16.4]} 40... Bxf2 {[%clk 0:00:01.6]} 41. Qd5+ {[%clk
0:00:16.9]} 41... Kc7 {[%clk 0:00:01.6]} 42. Qxe5+ {[%clk 0:00:17.8]} 42... Kb6
{[%clk 0:00:02.2]} 43. Qf6+ {[%clk 0:00:18.3]} 43... Kb5 {[%clk 0:00:02.4]} 44.
Qxf2 {[%clk 0:00:19.2]} 44... Ka4 {[%clk 0:00:02.7]} 45. Qg3 {[%clk 0:00:19.8]}
45... a5 {[%clk 0:00:03.6]} 46. Qxg4 {[%clk 0:00:20.7]} 46... Ka3 {[%clk
0:00:04.1]} 47. Qf5 {[%clk 0:00:21.1]} 47... a4 {[%clk 0:00:04.6]} 48. Qa5
{[%clk 0:00:21.6]} 48... Kb2 {[%clk 0:00:05]} 49. Qxa4 {[%clk 0:00:21.9]} 49...
Ka1 {[%clk 0:00:05.4]} 50. Qb5 {[%clk 0:00:22.3]} 50... Kxa2 {[%clk 0:00:05.3]}
51. h4 {[%clk 0:00:21.9]} 51... Ka3 {[%clk 0:00:05.8]} 52. h5 {[%clk 0:00:22.8]}
52... Ka2 {[%clk 0:00:06.4]} 53. h6 {[%clk 0:00:23.3]} 53... Ka3 {[%clk
0:00:05.7]} 54. h7 {[%clk 0:00:24.2]} 1-0

[Event "Early-Titled-Tuesday-Blitz-January-23-2024"]
[Site "Chess.com"]
[Date "2024.01.23"]
[Round "2"]
[White "masnyszachistaaa"]
[Black "GrotBchess"]
[Result "1-0"]
[WhiteElo "2530"]
[BlackElo "2307"]
[TimeControl "180+1"]
[EndTime "8:18:02 PST"]
[Termination "masnyszachistaaa won by resignation"]

1. Nf3 {[%clk 0:03:00.9]} 1... Nf6 {[%clk 0:02:58.7]} 2. c4 {[%clk 0:02:57.4]}
2... e6 {[%clk 0:02:58.2]} 3. g3 {[%clk 0:02:56.3]} 3... d5 {[%clk 0:02:58.2]}
4. Bg2 {[%clk 0:02:55.9]} 4... c5 {[%clk 0:02:57.4]} 5. O-O {[%clk 0:02:51.7]}
5... Nc6 {[%clk 0:02:55.4]} 6. d4 {[%clk 0:02:44.7]} 6... dxc4 {[%clk 0:02:48]}
7. dxc5 {[%clk 0:02:20.7]} 7... Qxd1 {[%clk 0:02:39.5]} 8. Rxd1 {[%clk
0:02:21.6]} 8... Bxc5 {[%clk 0:02:38.9]} 9. Nbd2 {[%clk 0:02:19.3]} 9... O-O
{[%clk 0:02:16.6]} 10. Nxc4 {[%clk 0:02:18.8]} 10... Rb8 {[%clk 0:02:09.9]} 11.
Bf4 {[%clk 0:02:17.3]} 11... Ra8 {[%clk 0:02:08.1]} 12. Nfe5 {[%clk 0:02:01.2]}
12... Nxe5 {[%clk 0:02:04.6]} 13. Bxe5 {[%clk 0:01:55]} 13... a5 {[%clk
0:02:04.2]} 14. Rac1 {[%clk 0:01:38.1]} 14... Ra6 {[%clk 0:01:55.1]} 15. Nd6
{[%clk 0:01:11.5]} 15... Bxd6 {[%clk 0:01:19.8]} 16. Bxd6 {[%clk 0:01:06.7]}
16... Re8 {[%clk 0:01:19.6]} 17. Rxc8 {[%clk 0:00:56.1]} 17... Rxc8 {[%clk
0:01:16.7]} 18. Bxb7 {[%clk 0:00:56.2]} 18... Rxd6 {[%clk 0:01:04.8]} 19. Rxd6
{[%clk 0:00:57.1]} 19... Rc1+ {[%clk 0:01:04.1]} 20. Kg2 {[%clk 0:00:57.3]}
20... g6 {[%clk 0:01:01.1]} 21. Ra6 {[%clk 0:00:57.2]} 21... Rc5 {[%clk
0:00:48.4]} 22. Bf3 {[%clk 0:00:46.3]} 22... Nd7 {[%clk 0:00:43.4]} 23. b3
{[%clk 0:00:38.6]} 23... Ne5 {[%clk 0:00:39.6]} 24. Be4 {[%clk 0:00:37.8]} 24...
Kg7 {[%clk 0:00:36.5]} 25. h3 {[%clk 0:00:35.5]} 25... h5 {[%clk 0:00:34.3]} 26.
f4 {[%clk 0:00:33.9]} 26... Nd7 {[%clk 0:00:33.4]} 27. Kf2 {[%clk 0:00:33]}
27... Nf6 {[%clk 0:00:30.9]} 28. Bf3 {[%clk 0:00:31.9]} 28... g5 {[%clk
0:00:29.4]} 29. fxg5 {[%clk 0:00:24.3]} 29... Rxg5 {[%clk 0:00:30.3]} 30. h4
{[%clk 0:00:19.8]} 30... Rc5 {[%clk 0:00:29.4]} 31. Ke3 {[%clk 0:00:19.6]} 31...
Kg6 {[%clk 0:00:27.4]} 32. Kd4 {[%clk 0:00:19.7]} 32... Rb5 {[%clk 0:00:25.3]}
33. Kc4 {[%clk 0:00:18.8]} 33... Re5 {[%clk 0:00:25.2]} 34. Rb6 {[%clk
0:00:18.6]} 34... Ne4 {[%clk 0:00:17.1]} 35. Kd4 {[%clk 0:00:18.6]} 35... Kf5
{[%clk 0:00:13.6]} 36. Bxe4+ {[%clk 0:00:15.2]} 36... Rxe4+ {[%clk 0:00:13.4]}
37. Kd3 {[%clk 0:00:15.8]} 37... Re5 {[%clk 0:00:12.9]} 38. a4 {[%clk
0:00:14.8]} 38... Kg4 {[%clk 0:00:13]} 39. Rb5 {[%clk 0:00:14.9]} 39... Rf5
{[%clk 0:00:11.9]} 40. b4 {[%clk 0:00:13.5]} 40... axb4 {[%clk 0:00:10.9]} 41.
Rxf5 {[%clk 0:00:12.8]} 41... exf5 {[%clk 0:00:09.8]} 42. a5 {[%clk 0:00:13.3]}
42... Kxg3 {[%clk 0:00:10.5]} 43. a6 {[%clk 0:00:12.8]} 43... Kxh4 {[%clk
0:00:10.7]} 44. a7 {[%clk 0:00:13.1]} 44... Kg3 {[%clk 0:00:11.6]} 45. a8=Q
{[%clk 0:00:13.5]} 45... h4 {[%clk 0:00:12.5]} 46. Qf3+ {[%clk 0:00:13.4]} 46...
Kh2 {[%clk 0:00:12.2]} 47. Qxf5 {[%clk 0:00:13.3]} 47... h3 {[%clk 0:00:12]} 48.
Qxf7 {[%clk 0:00:13.5]} 48... Kh1 {[%clk 0:00:12.2]} 49. Qf3+ {[%clk 0:00:13]}
49... Kh2 {[%clk 0:00:11.4]} 50. Qg4 {[%clk 0:00:13.1]} 50... b3 {[%clk
0:00:10.5]} 51. Kc3 {[%clk 0:00:13.7]} 51... b2 {[%clk 0:00:10.6]} 52. Kxb2
{[%clk 0:00:14.1]} 52... Kh1 {[%clk 0:00:11.1]} 53. Qxh3+ {[%clk 0:00:14.3]}
53... Kg1 {[%clk 0:00:12]} 54. e4 {[%clk 0:00:13.7]} 54... Kf2 {[%clk
0:00:12.9]} 55. e5 {[%clk 0:00:14.1]} 1-0

[Event "Early-Titled-Tuesday-Blitz-January-23-2024"]
[Site "Chess.com"]
[Date "2024.01.23"]
[Round "2"]
[White "otrov-11"]
[Black "Karina_Ivanova"]
[Result "0-1"]
[WhiteElo "2506"]
[BlackElo "2305"]
[TimeControl "180+1"]
[EndTime "8:18:02 PST"]
[Termination "Karina_Ivanova won by resignation"]

1. d4 {[%clk 0:02:49.6]} 1... Nf6 {[%clk 0:02:59.4]} 2. c4 {[%clk 0:02:41]} 2...
e6 {[%clk 0:02:59]} 3. g3 {[%clk 0:02:41.5]} 3... Bb4+ {[%clk 0:02:53.4]} 4. Bd2
{[%clk 0:02:40.5]} 4... c5 {[%clk 0:02:51.7]} 5. Nf3 {[%clk 0:02:37.9]} 5... b6
{[%clk 0:02:50.5]} 6. Bg2 {[%clk 0:02:37.3]} 6... Bb7 {[%clk 0:02:50.3]} 7. Bxb4
{[%clk 0:02:36.6]} 7... cxb4 {[%clk 0:02:50]} 8. Nbd2 {[%clk 0:02:37.2]} 8...
O-O {[%clk 0:02:48.3]} 9. Qc2 {[%clk 0:02:37.3]} 9... d6 {[%clk 0:02:41.1]} 10.
e4 {[%clk 0:02:36.3]} 10... Nbd7 {[%clk 0:02:40.2]} 11. O-O {[%clk 0:02:36.6]}
11... e5 {[%clk 0:02:40.1]} 12. Rfe1 {[%clk 0:02:34.4]} 12... Rc8 {[%clk
0:02:36.1]} 13. a3 {[%clk 0:02:31.2]} 13... bxa3 {[%clk 0:02:35.1]} 14. Rxa3
{[%clk 0:02:32.1]} 14... a5 {[%clk 0:02:34.6]} 15. d5 {[%clk 0:02:11.5]} 15...
Nc5 {[%clk 0:02:33.6]} 16. Nh4 {[%clk 0:02:10.3]} 16... g6 {[%clk 0:02:27.1]}
17. h3 {[%clk 0:01:55.6]} 17... Kg7 {[%clk 0:02:21.6]} 18. Rae3 {[%clk 0:01:54]}
18... Ne8 {[%clk 0:02:15.4]} 19. Qd1 {[%clk 0:01:51.9]} 19... h6 {[%clk
0:02:09.8]} 20. Rf1 {[%clk 0:01:46]} 20... f5 {[%clk 0:02:04.9]} 21. exf5 {[%clk
0:01:45.8]} 21... gxf5 {[%clk 0:02:05.1]} 22. Qh5 {[%clk 0:01:42.8]} 22... Qg5
{[%clk 0:02:03.9]} 23. Qe2 {[%clk 0:01:38]} 23... f4 {[%clk 0:01:57.3]} 24. Nhf3
{[%clk 0:01:29.3]} 24... Qg6 {[%clk 0:01:50.4]} 25. Nxe5 {[%clk 0:01:16.8]}
25... dxe5 {[%clk 0:01:49.5]} 26. Rxe5 {[%clk 0:01:17.7]} 26... Nd6 {[%clk
0:01:46.3]} 27. Re7+ {[%clk 0:01:06.2]} 27... Kg8 {[%clk 0:01:37.3]} 28. Nf3
{[%clk 0:00:56.7]} 28... Rce8 {[%clk 0:01:34.5]} 29. Re5 {[%clk 0:00:43.3]}
29... fxg3 {[%clk 0:01:20.3]} 30. fxg3 {[%clk 0:00:43.1]} 30... Rxe5 {[%clk
0:01:19.6]} 31. Qxe5 {[%clk 0:00:38.4]} 31... Re8 {[%clk 0:01:19]} 32. Qf4
{[%clk 0:00:36.5]} 32... Re4 {[%clk 0:01:16.7]} 33. Qd2 {[%clk 0:00:28.5]} 33...
Qxg3 {[%clk 0:01:14.7]} 34. Kh1 {[%clk 0:00:26.8]} 34... Qf4 {[%clk 0:01:12.6]}
35. Qc2 {[%clk 0:00:24.1]} 35... Nf5 {[%clk 0:00:59.5]} 36. Kg1 {[%clk
0:00:24.5]} 36... Ne3 {[%clk 0:00:53.1]} 37. Qf2 {[%clk 0:00:17.4]} 37... Nxf1
{[%clk 0:00:52.6]} 38. Qxf1 {[%clk 0:00:18.3]} 38... Rxc4 {[%clk 0:00:50.9]} 39.
Qf2 {[%clk 0:00:15.8]} 39... Rc1+ {[%clk 0:00:49.1]} 40. Bf1 {[%clk 0:00:16.2]}
40... Bxd5 {[%clk 0:00:45.6]} 41. Qg2+ {[%clk 0:00:10.9]} 41... Kf8 {[%clk
0:00:45.3]} 42. Qd2 {[%clk 0:00:05.3]} 42... Qxd2 {[%clk 0:00:43.5]} 43. Nxd2
{[%clk 0:00:06.2]} 43... Rxf1+ {[%clk 0:00:38.7]} 44. Kxf1 {[%clk 0:00:06.1]}
44... Nd3 {[%clk 0:00:38.8]} 45. b3 {[%clk 0:00:05.2]} 45... Nc1 {[%clk
0:00:38.7]} 46. Kf2 {[%clk 0:00:04.6]} 46... Nxb3 {[%clk 0:00:38.7]} 47. Nb1
{[%clk 0:00:05.2]} 47... b5 {[%clk 0:00:37.6]} 48. Ke3 {[%clk 0:00:05.8]} 48...
Ke7 {[%clk 0:00:37.6]} 49. Kd3 {[%clk 0:00:06.5]} 49... Kd6 {[%clk 0:00:37.3]}
50. Kc3 {[%clk 0:00:07.4]} 50... b4+ {[%clk 0:00:36.8]} 51. Kb2 {[%clk
0:00:06.9]} 51... Kc5 {[%clk 0:00:36.5]} 52. h4 {[%clk 0:00:07.3]} 52... a4
{[%clk 0:00:36.2]} 53. Kc2 {[%clk 0:00:07.2]} 53... a3 {[%clk 0:00:35.2]} 54. h5
{[%clk 0:00:05.4]} 54... Be4+ {[%clk 0:00:35]} 55. Kd1 {[%clk 0:00:04.5]} 55...
Bxb1 {[%clk 0:00:35]} 0-1

[Event "Early-Titled-Tuesday-Blitz-January-23-2024"]
[Site "Chess.com"]
[Date "2024.01.23"]
[Round "2"]
[White "MusicCityMaster"]
[Black "Ali_rastbod"]
[Result "1-0"]
[WhiteElo "2413"]
[BlackElo "2710"]
[TimeControl "180+1"]
[EndTime "8:18:04 PST"]
[Termination "MusicCityMaster won by resignation"]

1. d4 {[%clk 0:02:09.9]} 1... Nf6 {[%clk 0:02:57.5]} 2. c4 {[%clk 0:02:09.6]}
2... e6 {[%clk 0:02:57.3]} 3. a3 {[%clk 0:02:09.6]} 3... c5 {[%clk 0:02:55.7]}
4. d5 {[%clk 0:02:09.4]} 4... exd5 {[%clk 0:02:51.1]} 5. cxd5 {[%clk 0:02:10.3]}
5... d6 {[%clk 0:02:51.7]} 6. Nc3 {[%clk 0:02:11.1]} 6... g6 {[%clk 0:02:51.7]}
7. Bf4 {[%clk 0:02:10.3]} 7... a6 {[%clk 0:02:49.4]} 8. a4 {[%clk 0:02:09.9]}
8... Bg7 {[%clk 0:02:48.3]} 9. e3 {[%clk 0:02:10.4]} 9... O-O {[%clk 0:02:48.8]}
10. h3 {[%clk 0:02:10.7]} 10... Re8 {[%clk 0:02:46.8]} 11. Nf3 {[%clk
0:02:09.7]} 11... Bf5 {[%clk 0:02:45.2]} 12. Bd3 {[%clk 0:02:07.3]} 12... Ne4
{[%clk 0:02:44.3]} 13. Bxe4 {[%clk 0:02:01]} 13... Bxe4 {[%clk 0:02:43.4]} 14.
O-O {[%clk 0:02:01.2]} 14... Qc7 {[%clk 0:02:31.2]} 15. Re1 {[%clk 0:01:59.3]}
15... Nd7 {[%clk 0:02:30.5]} 16. Rc1 {[%clk 0:01:51.8]} 16... Bxf3 {[%clk
0:02:25.7]} 17. Qxf3 {[%clk 0:01:51.2]} 17... Ne5 {[%clk 0:02:26.1]} 18. Qe2
{[%clk 0:01:44.9]} 18... Rab8 {[%clk 0:02:25.6]} 19. Bg3 {[%clk 0:01:40.4]}
19... b5 {[%clk 0:02:15.1]} 20. axb5 {[%clk 0:01:39.7]} 20... axb5 {[%clk
0:02:16]} 21. Nxb5 {[%clk 0:01:15.8]} 21... Qb6 {[%clk 0:02:15.3]} 22. Bxe5
{[%clk 0:01:16.1]} 22... Bxe5 {[%clk 0:02:13.4]} 23. Na3 {[%clk 0:01:16.4]}
23... Qxb2 {[%clk 0:02:09.8]} 24. Nc4 {[%clk 0:01:16.7]} 24... Qxe2 {[%clk
0:01:55]} 25. Rxe2 {[%clk 0:01:17.6]} 25... Rb4 {[%clk 0:01:55.1]} 26. f4 {[%clk
0:01:14.2]} 26... Bxf4 {[%clk 0:01:55.1]} 27. Kf2 {[%clk 0:01:06.6]} 27... Be5
{[%clk 0:01:51]} 28. Kf3 {[%clk 0:01:04.2]} 28... f5 {[%clk 0:01:44.8]} 29. Ra2
{[%clk 0:01:04]} 29... Re7 {[%clk 0:01:43.2]} 30. Ra6 {[%clk 0:01:03.7]} 30...
Rb3 {[%clk 0:01:41.8]} 31. Nxd6 {[%clk 0:00:51.8]} 31... Bxd6 {[%clk 0:01:38.1]}
32. Rxd6 {[%clk 0:00:52.7]} 32... Rbxe3+ {[%clk 0:01:37.3]} 33. Kf4 {[%clk
0:00:52.6]} 33... Kg7 {[%clk 0:01:30.9]} 34. Rc4 {[%clk 0:00:47.7]} 34... Re2
{[%clk 0:01:28.9]} 35. Kg3 {[%clk 0:00:45.4]} 35... R7e3+ {[%clk 0:01:23.7]} 36.
Kh2 {[%clk 0:00:45.2]} 36... Rd3 {[%clk 0:01:23.2]} 37. Rxc5 {[%clk 0:00:44.5]}
37... Rdd2 {[%clk 0:01:23.3]} 38. Rc7+ {[%clk 0:00:43.3]} 38... Kh6 {[%clk
0:01:24]} 39. Rdd7 {[%clk 0:00:42.3]} 39... Rxg2+ {[%clk 0:01:24.1]} 40. Kh1
{[%clk 0:00:43]} 40... Kg5 {[%clk 0:01:21]} 41. Rxh7 {[%clk 0:00:42.2]} 41...
Rge2 {[%clk 0:01:21.1]} 42. Rc1 {[%clk 0:00:39.9]} 42... Kf4 {[%clk 0:01:15.1]}
43. Rg7 {[%clk 0:00:36.4]} 43... g5 {[%clk 0:00:57.5]} 44. Rf1+ {[%clk
0:00:36.5]} 44... Kg3 {[%clk 0:00:56.9]} 45. Rxg5+ {[%clk 0:00:36.3]} 45... Kh4
{[%clk 0:00:57]} 46. Rg8 {[%clk 0:00:13]} 46... Rxd5 {[%clk 0:00:55.6]} 47. Rf4+
{[%clk 0:00:10.6]} 47... Kh5 {[%clk 0:00:47.2]} 48. Rf1 {[%clk 0:00:08.7]} 48...
f4 {[%clk 0:00:38.7]} 49. Rg2 {[%clk 0:00:08.1]} 49... Re4 {[%clk 0:00:34.4]}
50. Rfg1 {[%clk 0:00:07]} 50... Kh4 {[%clk 0:00:32.6]} 51. Rg4+ {[%clk 0:00:04]}
51... Kxh3 {[%clk 0:00:30.2]} 52. R4g2 {[%clk 0:00:04.3]} 1-0

[Event "Early-Titled-Tuesday-Blitz-January-23-2024"]
[Site "Chess.com"]
[Date "2024.01.23"]
[Round "2"]
[White "SHIVACalypso"]
[Black "Paladin61"]
[Result "0-1"]
[WhiteElo "2443"]
[BlackElo "2728"]
[TimeControl "180+1"]
[EndTime "8:18:07 PST"]
[Termination "Paladin61 won by resignation"]

1. c4 {[%clk 0:03:00.9]} 1... e5 {[%clk 0:02:58]} 2. Nc3 {[%clk 0:03:00.6]} 2...
Nf6 {[%clk 0:02:58.1]} 3. g3 {[%clk 0:03:00.9]} 3... d5 {[%clk 0:02:58.1]} 4.
cxd5 {[%clk 0:03:00.5]} 4... Nxd5 {[%clk 0:02:59]} 5. Bg2 {[%clk 0:03:01.2]}
5... Nb6 {[%clk 0:02:59.4]} 6. Nf3 {[%clk 0:03:00.2]} 6... Nc6 {[%clk
0:02:59.4]} 7. d3 {[%clk 0:03:00.6]} 7... Be7 {[%clk 0:02:59.6]} 8. O-O {[%clk
0:03:00.7]} 8... O-O {[%clk 0:02:59.3]} 9. Be3 {[%clk 0:03:01.2]} 9... Be6
{[%clk 0:02:59.5]} 10. Rc1 {[%clk 0:03:01.2]} 10... Qd7 {[%clk 0:02:49]} 11. b3
{[%clk 0:02:57.7]} 11... Rfd8 {[%clk 0:02:44.7]} 12. Ne4 {[%clk 0:02:50.7]}
12... f6 {[%clk 0:02:38.8]} 13. Nc5 {[%clk 0:02:48.8]} 13... Bxc5 {[%clk
0:02:38.3]} 14. Bxc5 {[%clk 0:02:49]} 14... Nd5 {[%clk 0:02:04.6]} 15. Nd2
{[%clk 0:02:44.3]} 15... b6 {[%clk 0:01:59.1]} 16. Ba3 {[%clk 0:02:44.4]} 16...
Nd4 {[%clk 0:01:59.5]} 17. Nc4 {[%clk 0:02:34]} 17... c5 {[%clk 0:01:57.4]} 18.
e3 {[%clk 0:02:21.1]} 18... Nc6 {[%clk 0:01:47.2]} 19. Qe2 {[%clk 0:02:16.2]}
19... Rac8 {[%clk 0:01:45.1]} 20. Rfd1 {[%clk 0:02:15.8]} 20... Kh8 {[%clk
0:01:36.2]} 21. Bb2 {[%clk 0:02:11.2]} 21... Bg4 {[%clk 0:01:35.4]} 22. f3
{[%clk 0:02:10.4]} 22... Bh5 {[%clk 0:01:26.3]} 23. a3 {[%clk 0:02:10.3]} 23...
Bf7 {[%clk 0:01:15.2]} 24. e4 {[%clk 0:02:10.2]} 24... Nc7 {[%clk 0:01:14.6]}
25. Bf1 {[%clk 0:02:03.8]} 25... Nb5 {[%clk 0:01:13.2]} 26. Qf2 {[%clk
0:01:25.5]} 26... Be6 {[%clk 0:01:05]} 27. f4 {[%clk 0:01:18.3]} 27... Nbd4
{[%clk 0:01:04.8]} 28. f5 {[%clk 0:01:17.2]} 28... Bf7 {[%clk 0:01:02.4]} 29.
Bxd4 {[%clk 0:01:17.8]} 29... Nxd4 {[%clk 0:01:01.4]} 30. Rb1 {[%clk 0:01:15.3]}
30... Nb5 {[%clk 0:00:52.2]} 31. Rdc1 {[%clk 0:01:07.9]} 31... Qd4 {[%clk
0:00:35.8]} 32. a4 {[%clk 0:01:05.4]} 32... Qxf2+ {[%clk 0:00:25]} 33. Kxf2
{[%clk 0:01:06.3]} 33... Nd4 {[%clk 0:00:25]} 34. Nd2 {[%clk 0:01:06.2]} 34...
Kg8 {[%clk 0:00:22.2]} 35. Ke3 {[%clk 0:01:06.5]} 35... Kf8 {[%clk 0:00:22.2]}
36. a5 {[%clk 0:00:58.6]} 36... Ke7 {[%clk 0:00:21.4]} 37. Ra1 {[%clk
0:00:56.7]} 37... b5 {[%clk 0:00:18.5]} 38. Rab1 {[%clk 0:00:47.3]} 38... Kd7
{[%clk 0:00:15.3]} 39. b4 {[%clk 0:00:47.2]} 39... cxb4 {[%clk 0:00:13.9]} 40.
Rxc8 {[%clk 0:00:44.9]} 40... Rxc8 {[%clk 0:00:14.8]} 41. Be2 {[%clk 0:00:40.5]}
41... b3 {[%clk 0:00:09.4]} 42. Bd1 {[%clk 0:00:40.6]} 42... Rc3 {[%clk
0:00:10]} 43. Rb2 {[%clk 0:00:38.5]} 43... Kd6 {[%clk 0:00:10]} 44. Nb1 {[%clk
0:00:38.2]} 44... Rc1 {[%clk 0:00:09.7]} 45. Kd2 {[%clk 0:00:36.8]} 45... Rc8
{[%clk 0:00:07.8]} 46. Nc3 {[%clk 0:00:31.5]} 46... Kc5 {[%clk 0:00:04.6]} 47.
Ne2 {[%clk 0:00:31.5]} 47... Kb4 {[%clk 0:00:03.8]} 48. Rb1 {[%clk 0:00:31.5]}
48... Ka3 {[%clk 0:00:03.6]} 49. Nc1 {[%clk 0:00:28.8]} 49... b2 {[%clk
0:00:03.8]} 50. Ne2 {[%clk 0:00:28.9]} 50... Ba2 {[%clk 0:00:04.3]} 51. Nxd4
{[%clk 0:00:28.2]} 51... exd4 {[%clk 0:00:04.5]} 52. Bc2 {[%clk 0:00:25.9]}
52... Bxb1 {[%clk 0:00:04.6]} 53. Bxb1 {[%clk 0:00:26.8]} 53... Rc1 {[%clk
0:00:05.1]} 0-1